Workbook

Sheet 5-1 Available-SO2
A1: Table 5-1. Summary of Available SO2 Emission Control Technology
A3: Emission Unit | C3: Available Emission Control Technology
A5: 1, 2 | B5: Simple Cycle Gas Turbine | C5: ULSD
C6: Low Sulfur Fuel
C7: Good Combustion Practices
A8: 5, 6 | B8: Combined Cycle Gas Turbine | C8: ULSD
C9: LSR
C10: Limited Operation
C11: Good Combustion Practices
A12: 7 | B12: Emergency Generator Engine | C12: ULSD
C13: Low Sulfur Fuel
C14: Limited Operation
C15: Good Combustion Practices
A16: 11, 12 | B16: Propane-Fired Boiler | C16: Low Sulfur Fuel
C17: Good Combustion Practices

Sheet 5-2 Feasible-SO2
A1: Table 5-2. Summary of Technically Feasible SO2 Emission Control Technology
A3: Emission Unit | C3: Technically Feasible Control Technology
A5: 1, 2 | B5: Simple Cycle Gas Turbine | C5: ULSD
C6: Low Sulfur Fuel
C7: Good Combustion Practices
A8: 5, 6 | B8: Combined Cycle Gas Turbine | C8: ULSD
C9: Good Combustion Practices and LSR
A10: 7 | B10: Emergency Generator Engine | C10: ULSD
C11: Low Sulfur Fuel
C12: Limited Operation
C13: Good Combustion Practices
A14: 11, 12 | B14: Propane-Fired Boiler | C14: Low Sulfur Fuel
C15: Good Combustion Practices

Sheet 5-3 Ranking-SO2
A1: Table 5-3. Ranking of Technically Feasible SO2 Emission Control Technology
A3: Emission Unit | C3: Emission Control Technology | D3: Control Efficiency (pct.) | E3: SO2 Emissions (tpy) | F3: SO2 Emissions Reduction (tpy)
A5: 1 | B5: Simple Cycle Turbine | C5: ULSD (0.0015 wt. pct. S) | D5: =((0.5-0.0015)/0.5)*100 -> 99.7 | E5: =E$7*((100-D5)/100) -> 4.4592 | F5: =$E$7-E5 -> 1481.9408
C6: Low Sulfur Fuel (0.05 wt. pct. S) | D6: =((0.5-0.05)/0.5)*100 -> 90 | E6: =E$7*((100-D6)/100) -> 148.64 | F6: =$E$7-E6 -> 1337.76
C7: Good Combustion Practices (0.50 wt. pct. S) (existing) | D7: 0 | E7: 1486.4 | F7: 0
A8: 2 | B8: Simple Cycle Turbine | C8: Limited Operation + ULSD (0.0015 wt. pct. S) | D8: =D5 -> 99.7 | E8: =E$10*((100-D8)/100) -> 4.0683 | F8: =$E$10-E8 -> 1352.0317
C9: Limited Operation + Low Sulfur Fuel (0.05 wt. pct. S) | D9: =D6 -> 90 | E9: =E$10*((100-D9)/100) -> 135.61 | F9: =$E$10-E9 -> 1220.49
C10: Good Combustion Practices (0.50 wt. pct. S) (existing) | D10: 0 | E10: 1356.1 | F10: 0
A11: 5, 6 | B11: Combined Cycle Gas Turbines (per turbine) | C11: ULSD (0.0015 wt. pct. S) | D11: 50 | E11: =E$12*((100-D11)/100) -> 3 | F11: =E12-E11 -> 3
C12: LSR (0.0030 wt. pct. S) + Good Combustion Practices (existing) | D12: 0 | E12: 6 | F12: 0
A13: 7 | B13: Emergency Generator Engine | C13: ULSD (0.0015 wt. pct. S) + Limited Operation | D13: 98.5 | E13: =$E$15*(100-D13)/100 -> 0.00015 | F13: =$E$15-E13 -> 0.00985
C14: Low Sulfur Fuel (0.05 wt. pct. S) + Limited Operation | D14: 50 | E14: =$E$15*(100-D14)/100 -> 0.005 | F14: =$E$15-E14 -> 0.005
C15: Limited Operation (0.1 wt. pct. S) (existing) | D15: 0 | E15: 0.01 | F15: 0
A16: 11, 12 | B16: Propane-Fired Boiler | C16: Low Sulfur Fuel (existing) | D16: 0 | E16: 0.0002 | F16: 0

Sheet 5-4 EU ID 1 ULSD CE
B1: Table 5-4. Annualized Costs for ULSD on
B2: the Diesel-fired Simple Cycle Gas Turbine (EU ID 1)
I3: Shaded cells indicate user inputs
B4: Project: | D4: GVEA North Pole - PM2.5 BACT Analysis (EU ID 1 - GE Frame 7 CT) | J4: Prepared By:
J5: Checked By:
J6: Rev:
B7: Annualized Costs
B8: DIRECT ANNUAL COSTS | E8: QTY | F8: UNIT | H8: TOTAL MATERIALS COST | I8: TOTAL LABOR COST | K8: TOTAL
B9: (1) | C9: Operating & Maintenance Costs | F9: % | I9: ='[1]Total Capital Investment'!K44*E9/E38 -> 0 | K9: =I9 -> 0
B10: (2) | C10: Repair & Replacement Costs | F10: % | I10: =E10*'[1]Total Capital Investment'!K47/10 -> 0 | K10: =I10 -> 0
B11: (3) | C11: Maintenance Materials | F11: LOT | H11: excluded in this estimate
B12: (4) | C12: Utilities
C13: (a) | D13: ULSD Costs: | E13: 45282461.54 | F13: GAL | G13: 0.2668 | H13: =E13*G13 -> 12081360.74 | K13: =H13 -> 12081360.74
B15: Total Direct Annual Costs (TDAC) | J15: TDAC = | K15: =SUM(K9:K13) -> 12081360.74
B17: INDIRECT ANNUAL COSTS
B18: (5) | C18: Overhead | F18: % | H18: excluded in this estimate | I18: =E18*G18 -> 0 | K18: =I18 -> 0
B19: (6) | C19: Administrative Charges, Property Taxes, Insurance | F19: % of capital | I19: =E19*'[1]Total Capital Investment'!K62 -> 0 | K19: =I19 -> 0
C20: Capital Recovery Factor [see inputs below] | E20: =($E$37/100*POWER((1+($E$37/100)),$E$38))/((POWER(((1+$E$37/100)),$E$38))-1) -> 0.09439292574
B21: (7) | C21: Capital Recovery | J21: CRF * TCI = | K21: =E20*'[1]Total Capital Investment'!K62 -> 0
B23: Total Indirect Annual Costs (TIAC) (refer to Table 5-10) | J23: TIAC = | K23: ='5-10 TCI ULSD EU1-2'!B13 -> 1461565.959
B25: TOTAL ANNUALIZED COSTS (TAC) | J25: TAC = (TDAC) + (TIAC) = | K25: =K15+K23 -> 13542926.7
B27: Cost Effectiveness Summary
B29: TOTAL TONS SO2 AVOIDED PER YEAR | J29: = | K29: ='5-3 Ranking-SO2'!F5 -> 1481.9408
B31: COST EFFECTIVENESS ($ PER TON AVOIDED BASED ON PTE) | J31: (TAC)/(TPY) = | K31: =K25/K29 -> 9138.642176
B32: COST EFFECTIVENESS ($ PER TON AVOIDED BASED ON ACTUAL HISTORIC RUN TIMES, AVOIDING 142.3 TONS PER YEAR)1 | J32: (TAC)/(TPY) = | K32: =+('5-10 TCI ULSD EU1-2'!C13+G13*833*672/0.13)/142.3 -> 12169.49413
B33: COST EFFECTIVENESS ($ PER TON PM AVOIDED BASED ON 6 TONS SO2 AVOIDED = 1 TON PM AVOIDED)2 | J33: (TAC)/(TPY) = | K33: =+K32*6 -> 73016.96479
D36: Data Inputs for Capital Recovery Factor:
D37: Annual Interest Rate (EPA OAQPS Control Cost Manual) | E37: 7 | F37: %
D38: Project Life (EPA OAQPS Control Cost Manual) | E38: 20 | F38: years
B40: 1 | C40: Annual average run hours for EU 1 from 2009-2016 is 833 hours, and the peak in the last four years has been 587 hours. 833 hours equates to 4,305,969 gallons of fuel, a TDAC of $1,148,832, and a TAC of $3,068,356. The capital cost of bulk fuel storage would be less and the TIAC for actuals is shown in Table 5-10.
B41: 2 | C41: Alaska Department of Environmental Conservation, Amendments to State Air Quality Control Plan Vol. III: Appendix III.D.5.7, page 52. In reference to fuel oil emissions, "Ambient sampling and modeling in FNSB indicates that reduction of six tons of SOX emissions result in the same reduction in ambient PM2.5 concentration as the reduction of one ton of directly emitted PM2.5".

Sheet 5-5 EU ID 2 ULSD CE
B1: Table 5-5. Annualized Costs for ULSD on
B2: the Diesel-fired Simple Cycle Gas Turbine (EU ID 2)
I3: Shaded cells indicate user inputs
B4: Project: | D4: GVEA North Pole - PM2.5 BACT Analysis (EU ID 2 - GE Frame 7 CT) | J4: Prepared By:
J5: Checked By:
J6: Rev:
B7: Annualized Costs
B8: DIRECT ANNUAL COSTS | E8: QTY | F8: UNIT | H8: TOTAL MATERIALS COST | I8: TOTAL LABOR COST | K8: TOTAL
B9: (1) | C9: Operating & Maintenance Costs | F9: % | I9: ='[2]Total Capital Investment'!K44*E9/E38 -> 0 | K9: =I9 -> 0
B10: (2) | C10: Repair & Replacement Costs | F10: % | I10: =E10*'[2]Total Capital Investment'!K47/10 -> 0 | K10: =I10 -> 0
B11: (3) | C11: Maintenance Materials | F11: LOT | H11: excluded in this estimate
B12: (4) | C12: Utilities
C13: (a) | D13: ULSD Costs: | E13: 41312492.31 | F13: GAL | G13: 0.2668 | H13: =E13*G13 -> 11022172.95 | K13: =H13 -> 11022172.95
B15: Total Direct Annual Costs (TDAC) | J15: TDAC = | K15: =SUM(K9:K13) -> 11022172.95
B17: INDIRECT ANNUAL COSTS
B18: (5) | C18: Overhead | F18: % | H18: excluded in this estimate | I18: =E18*G18 -> 0 | K18: =I18 -> 0
B19: (6) | C19: Administrative Charges, Property Taxes, Insurance | F19: % of capital | I19: =E19*'[2]Total Capital Investment'!K62 -> 0 | K19: =I19 -> 0
C20: Capital Recovery Factor [see inputs below] | E20: =($E$37/100*POWER((1+($E$37/100)),$E$38))/((POWER(((1+$E$37/100)),$E$38))-1) -> 0.09439292574
B21: (7) | C21: Capital Recovery | J21: CRF * TCI = | K21: =E20*'[2]Total Capital Investment'!K62 -> 0
B23: Total Indirect Annual Costs (TIAC) (refer to Table 5-10) | J23: TIAC = | K23: ='5-10 TCI ULSD EU1-2'!B13 -> 1461565.959
B25: TOTAL ANNUALIZED COSTS (TAC) | J25: TAC = (TDAC) + (TIAC) = | K25: =K15+K23 -> 12483738.91
B27: Cost Effectiveness Summary
B29: TOTAL TONS SO2 AVOIDED PER YEAR | J29: = | K29: ='5-3 Ranking-SO2'!F8 -> 1352.0317
B31: COST EFFECTIVENESS ($ PER TON AVOIDED BASED ON PTE) | J31: (TAC)/(TPY) = | K31: =K25/K29 -> 9233.318203
B32: COST EFFECTIVENESS ($ PER TON AVOIDED BASED ON ACTUALS, AVOIDING 422.3 TONS PER YEAR)1 | J32: (TAC)/(TPY) = | K32: =+('5-10 TCI ULSD EU1-2'!C13+G13*2472*672/0.13)/422.3 -> 9453.343892
B33: COST EFFECTIVENESS ($ PER TON PM AVOIDED BASED ON 6 TONS SO2 AVOIDED = EQUIVALENT TO 1 TON PM AVOIDED)2 | J33: (TAC)/(TPY) = | K33: =+K32*6 -> 56720.06335
D36: Data Inputs for Capital Recovery Factor:
D37: Annual Interest Rate (EPA OAQPS Control Cost Manual) | E37: 7 | F37: %
D38: Project Life (EPA OAQPS Control Cost Manual) | E38: 20 | F38: years
B40: 1 | C40: Annual average run hours for EU 2 from 2009-2016 is 2472 hours, and the peak in the last four years has been 2873 hours. 2472 hours equates to 12,778,338 gallons of fuel, a TDAC of $3,409,261, and a TAC of $5,328,784. The capital cost of bulk fuel storage would be less and the TIAC for actuals is shown in Table 5-10.
B41: 2 | C41: Alaska Department of Environmental Conservation, Amendments to State Air Quality Control Plan Vol. III: Appendix III.D.5.7, page 52. In reference to fuel oil emissions, "Ambient sampling and modeling in FNSB indicates that reduction of six tons of SOX emissions result in the same reduction in ambient PM2.5 concentration as the reduction of one ton of directly emitted PM2.5".

Sheet 5-6 EU ID 5&6 ULSD CE
B1: Table 5-6. Annualized Costs for ULSD on
B2: the Diesel-fired Combined Cycle Gas Turbines (EU IDs 5 and 6)
I4: Shaded cells indicate user inputs
B5: Project: | D5: GVEA North Pole - PM2.5 BACT Analysis (EU IDs 5 and 6 - GE LM6000PC CT) | J5: Prepared By:
J6: Checked By:
J7: Rev:
B8: Annualized Costs
B9: DIRECT ANNUAL COSTS | E9: QTY | F9: UNIT | H9: TOTAL MATERIALS COST | I9: TOTAL LABOR COST | K9: TOTAL
B10: (1) | C10: Operating & Maintenance Costs | F10: % | I10: ='[2]Total Capital Investment'!K44*E10/E37 -> 0 | K10: =I10 -> 0
B11: (2) | C11: Repair & Replacement Costs | F11: % | I11: =E11*'[2]Total Capital Investment'!K47/10 -> 0 | K11: =I11 -> 0
B12: (3) | C12: Maintenance Materials | F12: LOT | H12: excluded in this estimate
B13: (4) | C13: Utilities
C14: (a) | D14: ULSD Costs: | E14: =455*8760/0.13 -> 30660000 | F14: GAL | G14: 0.908234 | H14: =E14*G14 -> 27846454.44 | K14: =H14 -> 27846454.44
B16: Total Direct Annual Costs (TDAC) | J16: TDAC = | K16: =SUM(K10:K14) -> 27846454.44
B18: INDIRECT ANNUAL COSTS
B19: (5) | C19: Overhead | F19: % | H19: excluded in this estimate | I19: =E19*G19 -> 0 | K19: =I19 -> 0
B20: (6) | C20: Administrative Charges, Property Taxes, Insurance | F20: % of capital | I20: =E20*'[2]Total Capital Investment'!K62 -> 0 | K20: =I20 -> 0
C21: Capital Recovery Factor [see inputs below] | E21: =($E$36/100*POWER((1+($E$36/100)),$E$37))/((POWER(((1+$E$36/100)),$E$37))-1) -> 0.09439292574
B22: (7) | C22: Capital Recovery | J22: CRF * TCI = | K22: =E21*'[2]Total Capital Investment'!K62 -> 0
B24: Total Indirect Annual Costs (TIAC) | J24: TIAC = | K24: =SUM(K19:K22) -> 0
B26: TOTAL ANNUALIZED COSTS (TAC) | J26: TAC = (TDAC) + (TIAC) = | K26: =K16+K24 -> 27846454.44
B28: Cost Effectiveness Summary
B30: TOTAL TONS SO2 AVOIDED PER YEAR | J30: = | K30: ='5-3 Ranking-SO2'!F11-'5-3 Ranking-SO2'!F12 -> 3
B32: COST EFFECTIVENESS ($ PER TON AVOIDED) | J32: (TAC)/(TPY) = | K32: =K26/K30 -> 9282151.48
D35: Data Inputs for Capital Recovery Factor:
D36: Annual Interest Rate (EPA OAQPS Control Cost Manual) | E36: 7 | F36: %
D37: Project Life (EPA OAQPS Control Cost Manual) | E37: 20 | F37: years

Sheet 5-7 EU ID 7 ULSD CE
B1: Table 5-7. Annualized Costs for ULSD on
B2: the Diesel-fired Emergency Generator Engine (EU ID 7)
I3: Shaded cells indicate user inputs
B4: Project: | D4: GVEA North Pole - PM2.5 BACT Analysis (EU ID 7 - Generac Gen Set Engine) | J4: Prepared By:
J5: Checked By:
J6: Rev:
B7: Annualized Costs
B8: DIRECT ANNUAL COSTS | E8: QTY | F8: UNIT | H8: TOTAL MATERIALS COST | I8: TOTAL LABOR COST | K8: TOTAL
B9: (1) | C9: Operating & Maintenance Costs | F9: % | I9: ='[3]Total Capital Investment'!K44*E9/E36 -> 0 | K9: =I9 -> 0
B10: (2) | C10: Repair & Replacement Costs | F10: % | I10: =E10*'[3]Total Capital Investment'!K47/10 -> 0 | K10: =I10 -> 0
B11: (3) | C11: Maintenance Materials | F11: LOT | H11: excluded in this estimate
B12: (4) | C12: Utilities
C13: (a) | D13: ULSD Costs: | E13: =32*52 -> 1664 | F13: GAL | G13: 0.2668 | H13: =E13*G13 -> 443.9552 | K13: =H13 -> 443.9552
B15: Total Direct Annual Costs (TDAC) | J15: TDAC = | K15: =SUM(K9:K13) -> 443.9552
B17: INDIRECT ANNUAL COSTS
B18: (5) | C18: Overhead | F18: % | H18: excluded in this estimate | I18: =E18*G18 -> 0 | K18: =I18 -> 0
B19: (6) | C19: Administrative Charges, Property Taxes, Insurance | F19: % of capital | I19: =E19*'[3]Total Capital Investment'!K62 -> 0 | K19: =I19 -> 0
C20: Capital Recovery Factor [see inputs below] | E20: =($E$35/100*POWER((1+($E$35/100)),$E$36))/((POWER(((1+$E$35/100)),$E$36))-1) -> 0.09439292574
B21: (7) | C21: Capital Recovery | J21: CRF * TCI = | K21: =E20*'[3]Total Capital Investment'!K62 -> 0
B23: Total Indirect Annual Costs (TIAC) | J23: TIAC = | K23: =SUM(K18:K21) -> 0
B25: TOTAL ANNUALIZED COSTS (TAC) | J25: TAC = (TDAC) + (TIAC) = | K25: =K15+K23 -> 443.9552
B27: Cost Effectiveness Summary
B29: TOTAL TONS SO2 AVOIDED PER YEAR | J29: = | K29: ='5-3 Ranking-SO2'!F13 -> 0.00985
B31: COST EFFECTIVENESS ($ PER TON AVOIDED) | J31: (TAC)/(TPY) = | K31: =K25/K29 -> 45071.59391
D34: Data Inputs for Capital Recovery Factor:
D35: Annual Interest Rate (EPA OAQPS Control Cost Manual) | E35: 7 | F35: %
D36: Project Life (EPA OAQPS Control Cost Manual) | E36: 20 | F36: years

Sheet Table 5-8
A1: Table 5-8. GVEA North Pole Facility - SO2 BACT Cost Effectiveness
A3: Summary1 for Each Emission Unit Based on PTE
A5: Simple Cycle Gas Turbine (EU ID 1)
A6: ='5-3 Ranking-SO2'!C5 -> ULSD (0.0015 wt. pct. S) | B6: ='5-3 Ranking-SO2'!E5 -> 4.4592 | C6: =+'5-10 TCI ULSD EU1-2'!B10 -> 10875319.15 | D6: ='5-4 EU ID 1 ULSD CE'!K25 -> 13542926.7 | E6: ='5-4 EU ID 1 ULSD CE'!K15 -> 12081360.74 | F6: =D6/'5-4 EU ID 1 ULSD CE'!K29 -> 9138.642176
A7: ='5-3 Ranking-SO2'!C7 -> Good Combustion Practices (0.50 wt. pct. S) (existing) | B7: ='5-3 Ranking-SO2'!E7 -> 1486.4 | C7: ~ | D7: ~ | E7: ~ | F7: ~
A9: Simple Cycle Gas Turbine (EU ID 2)
A10: ='5-3 Ranking-SO2'!C8 -> Limited Operation + ULSD (0.0015 wt. pct. S) | B10: ='5-3 Ranking-SO2'!E8 -> 4.0683 | C10: =+'5-10 TCI ULSD EU1-2'!B10 -> 10875319.15 | D10: ='5-5 EU ID 2 ULSD CE'!K25 -> 12483738.91 | E10: ='5-5 EU ID 2 ULSD CE'!K15 -> 11022172.95 | F10: =D10/'5-5 EU ID 2 ULSD CE'!K29 -> 9233.318203
A11: ='5-3 Ranking-SO2'!C10 -> Good Combustion Practices (0.50 wt. pct. S) (existing) | B11: ='5-3 Ranking-SO2'!E10 -> 1356.1 | C11: ~ | D11: ~ | E11: ~ | F11: ~
A13: Combined Cycle Gas Turbines (EU IDs 5 and 6)
A14: ='5-3 Ranking-SO2'!C11 -> ULSD (0.0015 wt. pct. S) | B14: ='5-3 Ranking-SO2'!E11 -> 3 | C14: ~ | D14: ='5-6 EU ID 5&6 ULSD CE'!K26 -> 27846454.44 | E14: ~ | F14: ='5-6 EU ID 5&6 ULSD CE'!K32 -> 9282151.48
A15: ='5-3 Ranking-SO2'!C12 -> LSR (0.0030 wt. pct. S) + Good Combustion Practices (existing) | B15: ='5-3 Ranking-SO2'!E12 -> 6 | C15: ~ | D15: ~ | E15: ~ | F15: ~
A17: Emergency Generator Engine (EU ID 7)
A18: ='5-3 Ranking-SO2'!C13 -> ULSD (0.0015 wt. pct. S) + Limited Operation | B18: ='5-3 Ranking-SO2'!E13 -> 0.00015 | C18: ~ | D18: ='5-7 EU ID 7 ULSD CE'!K25 -> 443.9552 | E18: ~ | F18: ='5-7 EU ID 7 ULSD CE'!K31 -> 45071.59391
A19: ='5-3 Ranking-SO2'!C15 -> Limited Operation (0.1 wt. pct. S) (existing) | B19: ='5-3 Ranking-SO2'!E15 -> 0.01 | C19: ~ | D19: ~ | E19: ~ | F19: ~
A21: Propane Fired Boilers (EU IDs 11 and 12)
A22: Low Sulfur Fuel (propane) (existing) | B22: ='5-3 Ranking-SO2'!F16 -> 0 | C22: ~ | D22: ~ | E22: ~ | F22: ~
A24: Summary1 for Each Emission Unit Based on Actuals
A25: Control Technology Option | B25: SO2 Emissions (tpy) | C25: Total Installed Capital ($) | D25: Total Annualized Cost ($/year) | E25: Annual O&M Cost ($/year) | F25: Cost Effectiveness ($/ton SO2 removed)
A27: Simple Cycle Gas Turbine (EU ID 1)
A28: ='5-3 Ranking-SO2'!C5 -> ULSD (0.0015 wt. pct. S) | B28: ='5-3 Ranking-SO2'!E5 -> 4.4592 | C28: =+'5-10 TCI ULSD EU1-2'!B10 -> 10875319.15 | D28: 3068356 | E28: 1148832 | F28: =D28/142.3 -> 21562.58609
A29: ='5-3 Ranking-SO2'!C7 -> Good Combustion Practices (0.50 wt. pct. S) (existing) | B29: ='5-3 Ranking-SO2'!E7 -> 1486.4 | C29: ~ | D29: ~ | E29: ~ | F29: ~
A31: Simple Cycle Gas Turbine (EU ID 2)
A32: ='5-3 Ranking-SO2'!C8 -> Limited Operation + ULSD (0.0015 wt. pct. S) | B32: ='5-3 Ranking-SO2'!E8 -> 4.0683 | C32: =+'5-10 TCI ULSD EU1-2'!B10 -> 10875319.15 | D32: 5328784 | E32: 3409261 | F32: =D32/422.3 -> 12618.47975
A33: ='5-3 Ranking-SO2'!C10 -> Good Combustion Practices (0.50 wt. pct. S) (existing) | B33: ='5-3 Ranking-SO2'!E10 -> 1356.1 | C33: ~ | D33: ~ | E33: ~ | F33: ~
A35: Combined Cycle Gas Turbines (EU IDs 5 and 6)
A36: ='5-3 Ranking-SO2'!C11 -> ULSD (0.0015 wt. pct. S) | B36: ='5-3 Ranking-SO2'!E11 -> 3 | C36: ~ | D36: ='5-6 EU ID 5&6 ULSD CE'!K26 -> 27846454.44 | E36: ~ | F36: ='5-6 EU ID 5&6 ULSD CE'!K32 -> 9282151.48
A37: ='5-3 Ranking-SO2'!C12 -> LSR (0.0030 wt. pct. S) + Good Combustion Practices (existing) | B37: ='5-3 Ranking-SO2'!E12 -> 6 | C37: ~ | D37: ~ | E37: ~ | F37: ~
A39: Emergency Generator Engine (EU ID 7)
A40: ='5-3 Ranking-SO2'!C13 -> ULSD (0.0015 wt. pct. S) + Limited Operation | B40: ='5-3 Ranking-SO2'!E13 -> 0.00015 | C40: ~ | D40: ='5-7 EU ID 7 ULSD CE'!K25 -> 443.9552 | E40: ~ | F40: ='5-7 EU ID 7 ULSD CE'!K31 -> 45071.59391
A41: ='5-3 Ranking-SO2'!C15 -> Limited Operation (0.1 wt. pct. S) (existing) | B41: ='5-3 Ranking-SO2'!E15 -> 0.01 | C41: ~ | D41: ~ | E41: ~ | F41: ~
A43: Propane Fired Boilers (EU IDs 11 and 12)
A44: Low Sulfur Fuel (propane) (existing) | B44: ='5-3 Ranking-SO2'!F16 -> 0 | C44: ~ | D44: ~ | E44: ~ | F44: ~
A46: 1 All emission costs are on a per emission unit basis.

Sheet Table - 5-9
A1: Table 5-9. GVEA North Pole Facility - Proposed SO2 BACT and Associated
A2: Emission Rate for Each Emission Unit
A4: ID | B4: Description | D4: Description | E4: Emission Rate1
A6: 1, 2 | B6: Simple Cycle Gas Turbine | C6: Fuel Oil | D6: Good Combustion Practices (existing) | E6: 500 ppm S in fuel
A7: 5, 6 | B7: Combined Cycle Gas Turbine | C7: LSR | D7: LSR (existing) | E7: 30 ppm S in fuel
A8: 7 | B8: Emergency Generator Engine | C8: Fuel Oil | D8: Good Combustion Practices (existing) | E8: 500 ppm S in fuel
A9: 11, 12 | B9: Boiler | C9: Propane | D9: Low Sulfur Fuel - Propane (existing) | E9: 0.0012 lb/kgal
A11: 1 Emissions are on a per emission unit basis.

Sheet 5-10 TCI ULSD EU1-2
A1: Table 5-10. Capital Cost for New ULSD Storage Based on
A2: Maximum Fuel Use and Actual Fuel Use
B5: North Pole EUs 1 and 2 Maximum Fuel Use | C5: Zehnder EUs 1 and 2 Maximum Fuel Use | D5: North Pole EUs 1 and 2 Actual Fuel Use | E5: Zehnder EUs 1 and 2 Actual Fuel Use
A6: Capital Cost Estimate | B6: 30425000 | D6: 21050000
A7: Heat Input, MMBtu/day (combined for each set of combustion turbines) | B7: 32256 | C7: 12864 | D7: 32256 | E7: 12864
A8: Percentage of Heat Input | B8: =B7/(B7+C7) -> 0.714893617 | C8: =C7/(B7+C7) -> 0.285106383 | D8: =D7/(D7+E7) -> 0.714893617 | E8: =E7/(D7+E7) -> 0.285106383
A9: Capital Cost (apportioned based on heat input ratio) | B9: =B8*$B$6 -> 21750638.3 | C9: =C8*$B$6 -> 8674361.702 | D9: =D8*$D$6 -> 15048510.64 | E9: =E8*$D$6 -> 6001489.362
A10: Capital Cost (apportioned per combustion turbine) | B10: =B9/2 -> 10875319.15 | C10: =C9/2 -> 4337180.851 | D10: =D9/2 -> 7524255.319 | E10: =E9/2 -> 3000744.681
A11: Capital Recovery (per combustion turbine) | B11: =B10*B15 -> 1026553.193 | C11: =C10*B15 -> 409399.19 | D11: =D10*B15 -> 710236.4736 | E11: =E10*B15 -> 283249.0698
A12: Administrative Charges, Property Taxes, Insurance (per combustion turbine) | B12: =C23*B10 -> 435012.766 | C12: =C23*C10 -> 173487.234 | D12: =C23*D10 -> 300970.2128 | E12: =C23*E10 -> 120029.7872
A13: Total Annual Indirect Cost (per combustion turbine) | B13: =SUM(B11:B12) -> 1461565.959 | C13: =SUM(C11:C12) -> 582886.4241 | D13: =SUM(D11:D12) -> 1011206.686 | E13: =SUM(E11:E12) -> 403278.8571
A15: Capital recovery factor | B15: =($C$18/100*POWER((1+($C$18/100)),$C$20))/((POWER(((1+$C$18/100)),$C$20))-1) -> 0.09439292574
A17: Data Inputs for Capital Recovery Factor:
A18: Annual Interest Rate (EPA OAQPS Control | C18: 7 | D18: pct.
A19: Cost Manual)
A20: Project Life (EPA OAQPS Control Cost | C20: 20 | D20: years
A21: Manual)
A23: Administrative Charges, Property Taxes | C23: 0.04
A24: Insurance (percentage of total capital
A25: cost)
A27: Capital cost estimate for 1.27 million gallons of storage capacity.

Sheet DO NOT INCLUDE - Identified-SO2
A1: Table E-1a. Summary of Identified SO2 Control Technology - Liquid Fuel-Fired Simple Cycle Turbines > 25 MW (RBLC 15.190)
A3: Pollutant | B3: Control Technology Used | C3: Number of RBLC Entries (11 Total)
A4: SO2 | B4: Low Sulfur Fuel | C4: 7
B5: None | C5: 4
B6: ULSD | C6: 0
A7: Note: Data is based on a RBLC review from January 1, 2005 through September 15, 2015.
A9: Table E-1b. Summary of Identified SO2 Control Technology - Liquid Fuel-Fired Combined Cycle Turbines > 25 MW (RBLC 15.290)
A11: Pollutant | B11: Control Technology Used | C11: Number of RBLC Entries (6 Total)
A12: SO2 | B12: ULSD | C12: 3
B13: None | C13: 2
B14: Limited Operation | C14: 2
B15: Low Sulfur Fuel | C15: 1
A16: Note: Data is based on a RBLC review from January 1, 2005 through September 15, 2015.
A18: Table E-1c. Summary of Identified SO2 Control Technology - Large Diesel Engines > 500 hp (RBLC 17.110)
A20: Pollutant | B20: Control Technology Used | C20: ="Number of RBLC Entries ("& SUM(C21:C26)& " Total)" -> Number of RBLC Entries (35 Total)
A21: SO2 | B21: Low-Sulfur Fuel | C21: 13
B22: ULSD | C22: 5
B23: Good Combustion Practices | C23: 5
B24: Limited Operation | C24: 5
B25: None | C25: 3
B26: Federal Standards | C26: 4
A27: Note: Data is based on a RBLC review from January 1, 2005 through September 15, 2015.
A29: Table E-1d. Summary of Identified SO2 Control Technology - Natural Gas-Fired Commercial/Institutional Boilers <100 MMBtu/hr (RBLC 13.310)
A31: Pollutant | B31: Control Technology Used | C31: Number of RBLC Entries (54 Total)
A32: SO2 | B32: Low Sulfur Fuel | C32: 31
B33: None | C33: 17
B34: Good Combustion Practices | C34: 7
A35: Note: Data is based on a RBLC review from January 1, 2005 through September 15, 2015.
